lending/lending_fUSD_20251116
["ID","MTS","AMOUNT","RATE_DAILY","PERIOD"]
[394155754,1763331033735,-500.0,0.00024773,2]
[394155756,1763331033745,-500.74682065,0.00024773,2]
[394155759,1763331033754,-500.0,0.00024773,2]
[394155760,1763331033764,-500.0,0.00024773,2]
[394155762,1763331033773,-500.23967656,0.00024773,2]
[394155764,1763331033783,-466.18419703,0.00024773,2]
[394155767,1763331033794,-184.25377407,0.00024773,2]
[394155769,1763331033804,-500.0,0.00024773,2]
[394155771,1763331033814,-175.78061052,0.00024773,2]
[394155773,1763331033824,-500.0,0.00024799,2]
[394155774,1763331033833,-524.08523061,0.00024799,2]
[394155776,1763331033843,-500.0,0.00024799,2]
[394155779,1763331033853,-165281.89179,0.000248,3]
[394155781,1763331033863,-164.00583255,0.00024873,2]
[394155782,1763331033872,-150.0,0.00024873,2]
[394155800,1763331034028,-500.0,0.00024873,2]
[394155802,1763331034038,-500.0,0.00024873,2]
[394155804,1763331034047,-500.73933806,0.00024873,2]
[394155806,1763331034057,-500.0,0.00024873,2]
[394155808,1763331034066,-506.45187471,0.00024873,2]
[394155810,1763331034075,-500.0,0.00024873,2]
[394155812,1763331034085,-500.0,0.00024873,2]
[394155814,1763331034094,-568.88126658,0.00024873,2]
[394155816,1763331034104,-500.0,0.00024889,2]
[394155818,1763331034113,-329.72147912,0.00024889,2]
[394155820,1763331034124,-158.96002129,0.00024889,2]
[394155822,1763331034134,-447.27249894,0.00024889,2]
[394155825,1763331034147,-500.0,0.00024889,2]
[394155826,1763331034157,-411.43640364,0.00024889,2]
[394155828,1763331034169,-500.0,0.00024889,2]
[394155830,1763331034179,-500.0,0.00024889,2]
[394155833,1763331034188,-500.0,0.00024889,2]
[394155834,1763331034197,-543.0041758,0.00024889,2]
[394155836,1763331034207,-500.0,0.00024889,2]
[394155838,1763331034216,-500.0,0.00024889,2]
[394155840,1763331034226,-500.0,0.00024889,2]
[394155842,1763331034237,-500.0,0.00024889,2]
[394155844,1763331034246,-500.0,0.00024889,2]
[394155846,1763331034255,-500.0,0.00024889,2]
[394155848,1763331034265,-324.1921326,0.00024889,2]
[394155850,1763331034274,-500.0,0.00024889,2]
[394155852,1763331034284,-500.0,0.00024889,2]
[394155854,1763331034293,-500.0,0.00024889,2]
[394155856,1763331034303,-500.0,0.00024889,2]
[394155858,1763331034313,-500.0,0.00024889,2]
[394155861,1763331034323,-500.0,0.00024889,2]
[394155863,1763331034332,-500.0,0.00024889,2]
[394155864,1763331034341,-500.0,0.00024889,2]
[394155867,1763331034351,-500.0,0.00024889,2]
[394155869,1763331034361,-500.0,0.00024889,2]
[394155871,1763331034371,-500.0,0.00024889,2]
[394155873,1763331034380,-500.0,0.00024889,2]
[394155875,1763331034389,-500.0,0.00024889,2]
[394155877,1763331034399,-500.0,0.00024889,2]
[394155879,1763331034408,-500.0,0.00024889,2]
[394155881,1763331034418,-500.0,0.00024889,2]
[394155883,1763331034427,-500.0,0.00024889,2]
[394155885,1763331034437,-500.0,0.00024889,2]
[394155887,1763331034447,-500.0,0.00024889,2]
[394155889,1763331034456,-500.0,0.00024889,2]
[394155891,1763331034465,-500.0,0.00024889,2]
[394155893,1763331034475,-500.0,0.00024889,2]
[394155895,1763331034484,-500.0,0.00024889,2]
[394155897,1763331034493,-500.0,0.00024889,2]
[394155899,1763331034503,-500.0,0.00024889,2]
[394155901,1763331034512,-500.0,0.00024889,2]
[394155903,1763331034521,-464.62171672,0.00024889,2]
[394155905,1763331034532,-500.0,0.00024889,2]
[394155907,1763331034541,-500.0,0.00024889,2]
[394155909,1763331034550,-227.00315412,0.00024889,2]
[394155911,1763331034560,-519.68737789,0.00024889,2]
[394155913,1763331034569,-519.68737789,0.00024889,2]
[394155915,1763331034582,-519.68737789,0.00024889,2]
[394155917,1763331034592,-519.68737789,0.00024889,2]
[394155920,1763331034601,-519.68737789,0.00024889,2]
[394155922,1763331034610,-519.68737789,0.00024889,2]
[394155924,1763331034620,-519.68737789,0.00024889,2]
[394155926,1763331034629,-519.68737789,0.00024889,2]
[394155928,1763331034639,-519.68737789,0.00024889,2]
[394155930,1763331034648,-519.68737789,0.00024889,2]
[394155932,1763331034658,-519.68737789,0.00024889,2]
[394155934,1763331034667,-519.68737789,0.00024889,2]
[394155936,1763331034677,-519.68737789,0.00024889,2]
[394155938,1763331034686,-519.68737789,0.00024889,2]
[394155940,1763331034695,-519.68737789,0.00024889,2]
[394155942,1763331034704,-519.68737789,0.00024889,2]
[394155944,1763331034713,-519.68737789,0.00024889,2]
[394155946,1763331034723,-519.68737789,0.00024889,2]
[394155948,1763331034733,-519.68737789,0.00024889,2]
[394155950,1763331034743,-519.68737789,0.00024889,2]
[394155952,1763331034753,-519.68737789,0.00024889,2]
[394155954,1763331034764,-519.68737789,0.00024889,2]
[394155956,1763331034774,-519.68737789,0.00024889,2]
[394155958,1763331034784,-519.68737789,0.00024889,2]
[394155960,1763331034794,-519.68737789,0.00024889,2]
[394155962,1763331034804,-519.68737789,0.00024889,2]
[394155964,1763331034814,-519.68737789,0.00024889,2]
[394155966,1763331034823,-519.68737789,0.00024889,2]
[394155968,1763331034833,-519.68737789,0.00024889,2]
[394155970,1763331034842,-519.68737789,0.00024889,2]
[394155972,1763331034852,-519.68737789,0.00024889,2]
[394155974,1763331034861,-519.68737789,0.00024889,2]
[394155976,1763331034871,-519.68737789,0.00024889,2]
[394155978,1763331034881,-519.68737789,0.00024889,2]
[394155980,1763331034891,-519.68737789,0.00024889,2]
[394155982,1763331034900,-519.68737789,0.00024889,2]
[394155984,1763331034911,-519.68737789,0.00024889,2]
[394155986,1763331034922,-519.68737789,0.00024889,2]
[394155988,1763331034931,-519.68737789,0.00024889,2]
[394155990,1763331034941,-500.0,0.00024889,2]
[394155992,1763331034951,-500.0,0.00024889,2]
[394155994,1763331034960,-500.0,0.00024889,2]
[394155996,1763331034970,-500.0,0.00024889,2]
[394155998,1763331034981,-500.0,0.00024889,2]
[394156000,1763331034990,-500.0,0.00024889,2]
[394156002,1763331034999,-500.0,0.00024889,2]
[394156004,1763331035009,-500.0,0.00024889,2]
[394156006,1763331035018,-500.0,0.00024889,2]
[394156008,1763331035027,-500.0,0.00024889,2]
[394156010,1763331035037,-500.0,0.00024889,2]
[394156013,1763331035047,-500.0,0.00024889,2]
[394156015,1763331035056,-500.0,0.00024889,2]
[394156017,1763331035068,-483.4982415,0.00024889,2]
[394156019,1763331035077,-500.0,0.00024889,2]
[394156021,1763331035087,-99169.1350742,0.0002489,3]
[394156023,1763331035097,-128332.396299,0.000249,3]
[394156025,1763331035106,-500.0,0.000249,9]
[394156027,1763331035117,-168.74841061,0.00025221,2]
[394156029,1763331035127,-33056.3783581,0.0002527,3]
[394156031,1763331035136,-25666.4792597,0.0002527,3]
[394156033,1763331035147,-1000.0,0.00025321,2]
[394156035,1763331035159,-470.24249009,0.00025321,2]
[394156037,1763331035169,-315.24912893,0.00025321,2]
[394156039,1763331035178,-1000.0,0.00025321,2]
[394156041,1763331035188,-1000.0,0.00025321,2]
[394156043,1763331035197,-1000.0,0.00025321,2]
[394156045,1763331035207,-1000.0,0.00025321,2]
[394156047,1763331035217,-1000.0,0.00025321,2]
[394156049,1763331035228,-1000.0,0.00025321,2]
[394156051,1763331035240,-500.0,0.00025321,2]
[394156053,1763331035250,-500.0,0.00025321,2]
[394156055,1763331035259,-447.04253758,0.00025321,2]
[394156057,1763331035269,-250.0,0.00025421,2]
[394156059,1763331035279,-1002.99102467,0.00025421,2]
[394156061,1763331035288,-1000.0,0.00025421,2]
[394156063,1763331035297,-1000.0,0.00025421,2]
[394156065,1763331035307,-1008.65666473,0.00025421,2]
[394156067,1763331035316,-858.35946228,0.00025421,2]
[394156069,1763331035326,-859.56572464,0.00025734,2]
[394156071,1763331035336,-226.36441641,0.00025868,2]
[394156073,1763331035345,-298.21916561,0.00025868,2]
[394156075,1763331035354,-1500.0,0.00025868,2]
[394156077,1763331035364,-502.75636513,0.00025868,2]
[394156079,1763331035373,-1500.0,0.00025868,2]
[394156081,1763331035382,-502.98988778,0.00025868,2]
[394156083,1763331035391,-1100.0,0.000259,9]
[394156084,1763331035400,-350.0,0.00025968,2]
[394156086,1763331035410,-1500.0,0.00025968,2]
[394156089,1763331035420,-5161.38880343,0.0002613,2]
[394156091,1763331035430,-4609.0,0.00026362,2]
[394156093,1763331035440,-1544.43506824,0.00026416,2]
[394156095,1763331035450,-2000.0,0.00026416,2]
[394156097,1763331035459,-33056.3783581,0.00026454,3]
[394156099,1763331035468,-25666.4792597,0.00026454,3]
[394156100,1763331035478,-25666.4792597,0.00026463,3]
[394156102,1763331035487,-500.0,0.00026473,2]
[394156105,1763331035496,-500.0,0.00026473,2]
[394156106,1763331035505,-150.0,0.00026473,2]
[394156108,1763331035514,-33056.3783581,0.00026473,3]
[394156110,1763331035523,-25666.4792597,0.00026473,3]
[394156112,1763331035532,-66112.7567161,0.00026483,3]
[394156114,1763331035541,-51332.9585194,0.00026483,3]
[394156116,1763331035551,-469.8302341,0.00026483,2]
[394156118,1763331035561,-500.0,0.00026492,2]
[394156120,1763331035570,-32271.92219284,0.00026493,2]
[394156123,1763331035589,-938.02,0.00026493,2]
[394156125,1763331035600,-4070.3640288,0.00026493,2]
[394156126,1763331035611,-801.79415419,0.00026493,2]
[394156127,1763331035622,-17733.43463301,0.00026493,2]
[394156128,1763331035638,-151.0,0.00019228,2]
[394156129,1763331035647,-4357.3648153,0.00026493,2]
[394156130,1763331035659,-15253.22017586,0.00026493,2]
[394156131,1763331035668,-240.74993926,0.00026516,2]
[394156146,1763331037916,-151.0,0.00019228,2]
[394156147,1763331037926,-151.0,0.00019228,2]
[394156149,1763331037935,-151.0,0.00019228,2]
[394156151,1763331037945,-151.0,0.00019228,2]
[394156153,1763331037954,-151.0,0.00019228,2]
[394156155,1763331037963,-151.0,0.00019228,2]
[394156157,1763331037973,-151.0,0.00019228,2]
[394156159,1763331037982,-151.0,0.00019228,2]
[394156161,1763331037992,-1151.05743443,0.00026473,2]
[394156163,1763331038002,-9.86893727,0.00026516,2]
[394156165,1763331038012,-2000.0,0.00026516,2]
[394156167,1763331038021,-25666.4792597,0.0002652,3]
[394156170,1763331038031,-548.0,0.00026676,2]
[394156172,1763331038040,-33056.3783581,0.00026697,3]
[394156175,1763331038050,-3975.59,0.00026707,2]
[394156178,1763331038059,-161.13351273,0.000268,2]
[394156181,1763331038070,-500.0,0.000268,2]
[394156184,1763331038080,-2500.0,0.00026964,2]
[394156189,1763331038090,-528.60723312,0.00027021,2]
[394156191,1763331038099,-250.0,0.00027021,2]
[394156195,1763331038108,-2037.47586497,0.00027064,2]
[394156197,1763331038117,-168.93567833,0.00027248,2]
[394156200,1763331038127,-500.0,0.00027267,2]
[394156203,1763331038136,-500.99994744,0.00027267,2]
[394156206,1763331038146,-500.0,0.00027267,2]
[394156208,1763331038155,-500.0,0.00027267,2]
[394156212,1763331038169,-500.0,0.00027267,2]
[394156215,1763331038179,-505.52335219,0.00027348,2]
[394156219,1763331038189,-300.0,0.00027397,2]
[394156222,1763331038199,-426.3,0.000274,14]
[394156225,1763331038209,-3000.0,0.00027512,5]
[394156228,1763331038219,-350.0,0.00027568,5]
[394156231,1763331038227,-1002.51981297,0.00027815,5]
[394156233,1763331038238,-1000.0,0.00027815,5]
[394156236,1763331038247,-308.20130097,0.00027815,5]
[394156239,1763331038257,-5161.38880343,0.00028031,2]
[394156243,1763331038267,-2000.0,0.0002806,5]
[394156245,1763331038276,-400.0,0.00028116,5]
[394156247,1763331038286,-859.56572464,0.00028335,2]
[394156249,1763331038296,-509.90200273,0.00028363,5]
[394156251,1763331038305,-158.0,0.00028741,2]
[394156253,1763331038314,-158.0,0.00028741,2]
[394156255,1763331038325,-158.0,0.00028741,2]
[394156256,1763331038335,-158.0,0.00028741,2]
[394156257,1763331038345,-158.0,0.00028741,2]
[394156258,1763331038354,-158.0,0.00028741,2]
[394156259,1763331038364,-158.0,0.00028741,2]
[394156260,1763331038373,-158.0,0.00028741,2]
[394156261,1763331038382,-158.0,0.00028741,2]
[394156262,1763331038392,-158.0,0.00028741,2]
[394156263,1763331038402,-158.0,0.00028741,2]
[394156265,1763331038412,-158.0,0.00028741,2]
[394156267,1763331038422,-158.0,0.00028741,2]
[394156269,1763331038434,-158.0,0.00028741,2]
[394156271,1763331038446,-158.0,0.00028741,2]
[394156273,1763331038457,-158.0,0.00028741,2]
[394156275,1763331038467,-158.0,0.00028741,2]
[394156277,1763331038478,-158.0,0.00028741,2]
[394156279,1763331038487,-158.0,0.00028741,2]
[394156281,1763331038497,-158.0,0.00028741,2]
[394156283,1763331038506,-158.0,0.00028741,2]
[394156285,1763331038516,-158.0,0.00028741,2]
[394156287,1763331038526,-158.0,0.00028741,2]
[394156289,1763331038535,-158.0,0.00028741,2]
[394156291,1763331038544,-158.0,0.00028741,2]
[394156293,1763331038554,-158.0,0.00028741,2]
[394156295,1763331038563,-158.0,0.00028741,2]
[394156297,1763331038573,-158.0,0.00028741,2]
[394156299,1763331038582,-598.73,0.000288,7]
[394156301,1763331038592,-5629.0,0.00028897,2]
[394156303,1763331038601,-1131.66864486,0.00028906,2]
[394156305,1763331038611,-478.25,0.00028959,2]
[394156307,1763331038621,-478.25,0.00028959,2]
[394156309,1763331038630,-478.25,0.00028959,2]
[394156311,1763331038639,-478.25,0.00028959,2]
[394156313,1763331038649,-478.25,0.00028959,2]
[394156315,1763331038659,-478.25,0.00028959,2]
[394156317,1763331038668,-478.25,0.00028959,2]
[394156319,1763331038677,-478.25,0.00028959,2]
[394156321,1763331038687,-478.25,0.00028959,2]
[394156323,1763331038696,-478.25,0.00028959,2]
[394156325,1763331038706,-478.25,0.00028959,2]
[394156327,1763331038716,-25666.4792597,0.00028966,3]
[394156329,1763331038725,-33056.3783581,0.00028976,3]
[394156331,1763331038736,-478.25,0.00028986,2]
[394156333,1763331038745,-478.25,0.00028986,2]
[394156335,1763331038755,-478.25,0.00028986,2]
[394156337,1763331038765,-478.25,0.00028986,2]
[394156339,1763331038775,-250.0,0.00029638,2]
[394156341,1763331038785,-200.0,0.00029638,2]
[394156343,1763331038794,-5161.38880343,0.00029933,2]
[394156345,1763331038804,-168.93567829,0.00030066,2]
[394156347,1763331038814,-450.46069199,0.00030137,120]
[394156349,1763331038823,-1065.45234406,0.00030449,3]
[394156351,1763331038833,-859.56572464,0.00030936,2]
[394156353,1763331038843,-1131.66864481,0.00030978,2]
[394156355,1763331038853,-168.7484106,0.00031342,4]
[394156357,1763331038863,-25666.4792597,0.00031432,3]
[394156359,1763331038873,-33056.3783581,0.00031443,3]
[394156361,1763331038882,-25666.4792597,0.00031443,3]
[394156363,1763331038892,-204518.0,0.000315,2]
[394156365,1763331038901,-180.63,0.0003151,2]
[394156367,1763331038910,-600.0,0.00031712,2]
[394156369,1763331038920,-212.86,0.00031712,2]
[394156371,1763331038929,-5161.38880343,0.00031834,2]
[394156372,1763331038938,-1700.0,0.000319,11]
[394156374,1763331038948,-166.36857467,0.00032,120]
[394156376,1763331038958,-172.38372829,0.00032,120]
[394156379,1763331038968,-264.83807075,0.00032,120]
[394156381,1763331038978,-164.79687027,0.00032,120]
[394156383,1763331038989,-262.27344041,0.00032,120]
[394156385,1763331038998,-99169.1350742,0.0003229,3]
[394156387,1763331039008,-102665.917039,0.0003229,3]
[394156388,1763331039017,-5518.0,0.000323,3]
[394156390,1763331039027,-969.5,0.00032316,30]
[394156393,1763331039037,-1278.91,0.000327,14]
[394156394,1763331039046,-598.73,0.000327,30]
[394156397,1763331039056,-500.0,0.00032877,7]
[394156399,1763331039065,-277.08105166,0.00032877,7]
[394156401,1763331039075,-500.0,0.00032877,7]
[394156403,1763331039085,-500.0,0.00032877,7]
[394156405,1763331039095,-500.0,0.00032877,7]
[394156407,1763331039105,-500.0,0.00032877,7]
[394156409,1763331039115,-500.0,0.00032877,7]
[394156411,1763331039125,-500.0,0.00032877,7]
[394156413,1763331039135,-500.0,0.00032877,7]
[394156415,1763331039144,-168.93567829,0.00032885,4]
[394156417,1763331039157,-166.36857467,0.00033,120]
[394156419,1763331039166,-191.0,0.00033,14]
[394156421,1763331039176,-264.83807075,0.00033,120]
[394156423,1763331039185,-5518.0,0.00033,5]
[394156425,1763331039197,-1131.66864481,0.00033051,2]
[394156427,1763331039207,-548.0,0.00033165,2]
[394156429,1763331039216,-6003.0,0.00033178,2]
[394156431,1763331039226,-9760.0,0.00033193,5]
[394156433,1763331039236,-51332.9585194,0.0003328,3]
[394156435,1763331039246,-25666.4792597,0.0003347,3]
[394156437,1763331039256,-51332.9585194,0.0003348,3]
[394156439,1763331039266,-859.56572464,0.00033537,2]
[394156441,1763331039275,-5161.38880343,0.00033735,2]
[394156443,1763331039284,-575.0,0.00033753,2]
[394156445,1763331039293,-907.0,0.00033753,2]
[394156447,1763331039303,-1190.0,0.00033753,2]
[394156449,1763331039313,-560.0,0.00033849,2]
[394156451,1763331039322,-1604.0,0.00033849,2]
[394156453,1763331039331,-505.547,0.00033849,2]
[394156455,1763331039340,-166.36857467,0.000339,120]
[394156457,1763331039349,-264.83807075,0.000339,120]
[394156459,1763331039359,-500.0,0.00033965,2]
[394156480,1763331039531,-150.0,0.00033978,7]
[394156482,1763331039541,-906.713,0.00034039,37]
[394156484,1763331039550,-150.0,0.00034055,37]
[394156486,1763331039559,-500.0,0.00034384,2]
[394156488,1763331039569,-151.0,0.00034542,2]
[394156490,1763331039578,-151.0,0.00034542,2]
[394156492,1763331039588,-1348.318,0.00034542,2]
[394156494,1763331039597,-164.12006615,0.00034799,7]
[394156496,1763331039606,-166.36857467,0.00035,120]
[394156498,1763331039616,-264.83807075,0.00035,120]
[394156500,1763331039626,-300.0,0.00035117,7]
[394156502,1763331039635,-300.0,0.00035117,7]
[394156504,1763331039645,-1131.66864481,0.00035123,2]
[394156506,1763331039654,-598.73,0.000352,30]
[394156508,1763331039664,-180.62312026,0.00035206,2]
[394156510,1763331039673,-600.0,0.00035307,2]
[394156513,1763331039683,-212.86,0.00035307,2]
[394156515,1763331039692,-1000.0,0.00035616,2]
[394156517,1763331039702,-2035.68,0.00035616,2]
[394156519,1763331039711,-500.0,0.00035616,2]
[394156521,1763331039721,-6000.0,0.00035616,5]
[394156523,1763331039730,-300.0,0.00035616,2]
[394156525,1763331039740,-500.0,0.00035616,2]
[394156527,1763331039750,-5161.38880343,0.00035636,2]
[394156529,1763331039760,-168.93567829,0.00035703,8]
[394156531,1763331039769,-498.19915,0.00035888,30]
[394156533,1763331039779,-1000.0,0.0003589,2]
[394156535,1763331039789,-2035.68,0.0003589,2]
[394156537,1763331039800,-500.0,0.0003589,2]
[394156540,1763331039810,-226.0,0.0003589,5]
[394156541,1763331039819,-300.0,0.0003589,2]
[394156544,1763331039829,-500.0,0.0003589,2]
[394156546,1763331039838,-257.43562933,0.00035993,120]
[394156548,1763331039847,-264.83807075,0.00036,120]
[394156550,1763331039857,-473.6,0.00036067,2]
[394156552,1763331039866,-498.19915,0.00036088,30]
[394156553,1763331039875,-12500.0,0.0003609,2]
[394156555,1763331039884,-12500.0,0.00036105,2]
[394156557,1763331039895,-859.56572464,0.00036138,2]
[394156560,1763331039905,-942.31535495,0.00036164,2]
[394156562,1763331039916,-2035.68,0.00036164,2]
[394156563,1763331039925,-500.0,0.00036164,2]
[394156566,1763331039936,-300.0,0.00036164,2]
[394156568,1763331039946,-500.0,0.00036164,2]
[394156570,1763331039955,-5000.0,0.00036169,2]
[394156572,1763331039964,-5000.0,0.00036188,2]
[394156573,1763331039974,-5000.0,0.00036196,2]
[394156575,1763331039984,-2500.0,0.00036243,2]
[394156578,1763331039993,-5000.0,0.00036254,2]
[394156580,1763331040004,-2500.0,0.00036278,2]
[394156581,1763331040014,-498.19915,0.00036288,30]
[394156583,1763331040023,-5000.0,0.00036304,2]
[394156585,1763331040033,-5000.0,0.0003637,2]
[394156588,1763331040044,-150.0,0.00036431,11]
[394156590,1763331040054,-2035.68,0.00036438,2]
[394156592,1763331040063,-500.0,0.00036438,2]
[394156594,1763331040073,-498.19915,0.00036488,30]
[394156595,1763331040090,-2500.0,0.00036498,2]
[394156597,1763331040102,-500.0,0.000365,30]
[394156600,1763331040111,-500.0,0.00036505,30]
[394156602,1763331040120,-500.0,0.00036509,30]
[394156604,1763331040130,-500.0,0.00036512,30]
[394156606,1763331040139,-600.0,0.00036638,30]
[394156608,1763331040149,-498.19915,0.00036688,30]
[394156610,1763331040158,-2500.0,0.00036706,2]
[394156612,1763331040170,-2035.68,0.00036712,2]
[394156614,1763331040180,-500.0,0.00036712,2]
[394156616,1763331040191,-500.0,0.0003672,30]
[394156618,1763331040202,-575.0,0.00036753,2]
[394156619,1763331040211,-907.0,0.00036753,2]
[394156622,1763331040221,-1190.0,0.00036753,2]
[394156624,1763331040232,-598.73,0.000368,30]
[394156625,1763331040245,-1604.0,0.00036849,2]
[394156627,1763331040255,-600.0,0.0003685,30]
[394156629,1763331040265,-500.0,0.00036851,30]
[394156631,1763331040274,-498.19915,0.00036888,30]
[394156633,1763331040283,-750.67,0.000369,2]
[394156635,1763331040292,-304.21,0.000369,14]
[394156637,1763331040302,-600.0,0.00036907,30]
[394156639,1763331040312,-500.0,0.00036936,30]
[394156641,1763331040321,-5000.0,0.00036973,2]
[394156643,1763331040330,-500.0,0.00036982,30]
[394156645,1763331040339,-2035.68,0.00036986,2]
[394156647,1763331040348,-500.0,0.00036986,2]
[394156649,1763331040359,-500.0,0.00036986,15]
[394156651,1763331040368,-181.3841226,0.00036986,15]
[394156653,1763331040378,-168.0,0.00037,2]
[394156655,1763331040388,-500.0,0.00037037,30]
[394156657,1763331040397,-498.19915,0.00037088,30]
[394156659,1763331040408,-500.0,0.00037121,30]
[394156661,1763331040422,-500.0,0.00037156,30]
[394156663,1763331040433,-1131.66864481,0.00037195,2]
[394156665,1763331040443,-500.0,0.00037215,30]
[394156668,1763331040454,-2035.68,0.0003726,2]
[394156669,1763331040463,-500.0,0.0003726,2]
[394156671,1763331040473,-498.19915,0.00037288,30]
[394156673,1763331040483,-943.19,0.000373,2]
[394156676,1763331040493,-500.0,0.00037322,30]
[394156678,1763331040502,-500.0,0.00037343,30]
[394156680,1763331040513,-498.19915,0.00037488,30]
[394156681,1763331040523,-2035.68,0.00037534,2]
[394156683,1763331040532,-500.0,0.00037534,2]
[394156685,1763331040541,-5161.38880343,0.00037538,2]
[394156688,1763331040554,-1318.0,0.00037542,2]
[394156691,1763331040574,-28050.6938269,0.00037561,2]
[394156693,1763331040587,-498.19915,0.00037688,30]
[394156696,1763331040604,-1312.901721,0.0003769,2]
[394156699,1763331040621,-32539.929534,0.0003769,2]
[394156702,1763331040638,-1579.6205337,0.0003769,2]
[394156704,1763331040651,-500.0,0.00037708,30]
[394156707,1763331040669,-5588.3503615,0.00037735,2]
[394156709,1763331040685,-150.0,0.00037753,20]
[394156712,1763331040702,-292543.7717633,0.00037754,2]
[394156715,1763331040718,-14485.0673557,0.00037754,2]
[394156718,1763331040735,-189277.0942193,0.00037754,2]
[394156721,1763331040750,-1671.2152201,0.00037754,2]
[394156723,1763331040766,-229.8903802,0.00037777,2]
[394156725,1763331040782,-304.21,0.000378,14]
[394156726,1763331040796,-2035.68,0.00037808,2]
[394156727,1763331040812,-500.0,0.00037808,2]
[394156728,1763331040825,-600.0,0.00037812,30]
[394156729,1763331040841,-150.0,0.0003782,31]
[394156731,1763331040855,-498.19915,0.00037888,30]
[394156733,1763331040866,-2300.0,0.000379,13]
[394156736,1763331040883,-500.0,0.00037952,30]
[394156739,1763331040897,-600.0,0.00037977,30]
[394156741,1763331040908,-166.0,0.00038,30]
[394156743,1763331040922,-500.0,0.00038008,30]
[394156746,1763331040936,-2035.68,0.00038082,2]
[394156748,1763331040949,-500.0,0.00038082,2]
[394156750,1763331040961,-498.19915,0.00038088,30]
[394156753,1763331040974,-500.0,0.00038096,30]
[394156756,1763331040990,-943.19,0.000381,2]
[394156758,1763331041004,-500.0,0.00038107,30]
[394156761,1763331041018,-500.0,0.00038111,30]
[394156763,1763331041031,-500.0,0.0003815,30]
[394156765,1763331041045,-500.0,0.00038152,30]
[394156767,1763331041059,-600.0,0.00038267,30]
[394156769,1763331041073,-498.19915,0.00038288,30]
[394156770,1763331041086,-500.0,0.00038328,30]
[394156771,1763331041100,-2035.68,0.00038356,2]
[394156773,1763331041113,-500.0,0.00038356,2]
[394156775,1763331041126,-1353.77,0.00038356,120]
[394156778,1763331041140,-204.43952516,0.00038356,5]
[394156780,1763331041153,-1353.77,0.00038383,120]
[394156782,1763331041169,-1353.77,0.0003841,120]
[394156785,1763331041184,-1353.77,0.00038438,120]
[394156787,1763331041199,-1353.77,0.00038465,120]
[394156790,1763331041213,-498.19915,0.00038488,30]
[394156792,1763331041227,-1353.77,0.00038493,120]
[394156795,1763331041242,-1353.77,0.0003852,120]
[394156797,1763331041255,-168.93567829,0.00038522,12]
[394156800,1763331041269,-1353.77,0.00038547,120]
[394156802,1763331041283,-1353.77,0.00038575,120]
[394156805,1763331041296,-1353.77,0.00038602,120]
[394156807,1763331041310,-2035.68,0.0003863,2]
[394156809,1763331041323,-500.0,0.0003863,2]
[394156812,1763331041336,-1353.77,0.0003863,120]
[394156814,1763331041350,-1353.77,0.00038657,120]
[394156817,1763331041363,-1353.77,0.00038684,120]
[394156819,1763331041377,-498.19915,0.00038688,30]
[394156822,1763331041391,-150.0,0.00038697,117]
[394156824,1763331041405,-1353.77,0.00038712,120]
[394156826,1763331041419,-500.0,0.00038719,30]
[394156829,1763331041432,-1353.77,0.00038739,120]
[394156831,1763331041446,-859.56572464,0.00038739,2]
[394156834,1763331041459,-500.0,0.00038752,30]
[394156836,1763331041472,-500.0,0.00038756,30]